fUSD/lending_fUSD_20240118
["ID","MTS","AMOUNT","RATE_DAILY","PERIOD"]
[312039382,1705569044657,-500.0,0.00021917,2]
[312039383,1705569044666,-512.03535495,0.00021917,2]
[312039384,1705569044675,-500.0,0.00021917,2]
[312039385,1705569044684,-500.0,0.00021917,2]
[312039386,1705569044693,-509.05703514,0.00021917,2]
[312039387,1705569044702,-500.0,0.00021917,2]
[312039388,1705569044711,-500.0,0.00021917,2]
[312039389,1705569044720,-500.0,0.00021917,2]
[312039390,1705569044729,-500.0,0.00021917,2]
[312039391,1705569044739,-500.0,0.00021917,2]
[312039392,1705569044748,-500.0,0.00021917,2]
[312039393,1705569044757,-500.0,0.00021917,2]
[312039394,1705569044767,-500.0,0.00021917,2]
[312039395,1705569044776,-637.9,0.00021917,2]
[312039396,1705569044785,-500.0,0.00021917,2]
[312039397,1705569044795,-500.0,0.00021917,2]
[312039398,1705569044804,-500.0,0.00021917,2]
[312039399,1705569044814,-85.48317464,0.00021917,2]
[312039400,1705569045142,-466.89682536,0.00021917,2]
[312039401,1705569045151,-512.63703462,0.00021917,2]
[312039402,1705569045160,-500.0,0.00021917,2]
[312039403,1705569045170,-615.63,0.00021917,2]
[312039404,1705569045180,-500.0,0.00021917,2]
[312039405,1705569045189,-500.0,0.00021917,2]
[312039406,1705569045198,-500.0,0.00021917,2]
[312039407,1705569045208,-500.0,0.00021917,2]
[312039408,1705569045218,-500.0,0.00021917,2]
[312039409,1705569045227,-500.0,0.00021917,2]
[312039410,1705569045236,-500.0,0.00021917,2]
[312039411,1705569045246,-500.0,0.00021917,2]
[312039412,1705569045256,-500.0,0.00021917,2]
[312039413,1705569045265,-208.21119346,0.00021917,2]
[312039414,1705569045274,-500.0,0.00021917,2]
[312039415,1705569045284,-500.0,0.00021917,2]
[312039416,1705569045293,-500.0,0.00021917,2]
[312039417,1705569045302,-500.0,0.00021917,2]
[312039418,1705569045311,-281.75809235,0.00021917,2]
[312039419,1705569045320,-500.0,0.00021917,2]
[312039420,1705569045329,-500.0,0.00021917,2]
[312039421,1705569045339,-500.0,0.00021917,2]
[312039422,1705569045349,-500.0,0.00021917,2]
[312039423,1705569045359,-500.0,0.00021917,2]
[312039424,1705569045367,-500.0,0.00021917,2]
[312039425,1705569045377,-532.8,0.00021917,2]
[312039426,1705569045386,-369.93,0.00021917,2]
[312039427,1705569045396,-500.0,0.00021917,2]
[312039428,1705569045405,-500.0,0.00021917,2]
[312039429,1705569045414,-500.0,0.00021917,2]
[312039430,1705569045423,-500.0,0.00021917,2]
[312039431,1705569045433,-500.0,0.00021917,2]
[312039432,1705569045442,-500.0,0.00021917,2]
[312039433,1705569045451,-500.0,0.00021917,2]
[312039434,1705569045460,-551.0900061,0.00021917,2]
[312039435,1705569045469,-500.0,0.00021917,2]
[312039436,1705569045478,-500.0,0.00021917,2]
[312039437,1705569045487,-500.0,0.00021917,2]
[312039438,1705569045496,-500.0,0.00021917,2]
[312039439,1705569045504,-500.0,0.00021917,2]
[312039440,1705569045513,-500.0,0.00021917,2]
[312039441,1705569045522,-500.0,0.00021917,2]
[312039442,1705569045531,-500.0,0.00021917,2]
[312039443,1705569045540,-500.0,0.00021917,2]
[312039444,1705569045549,-500.0,0.00021917,2]
[312039445,1705569045558,-500.0,0.00021917,2]
[312039446,1705569045567,-500.0,0.00021917,2]
[312039447,1705569045576,-568.19883399,0.00021917,2]
[312039448,1705569045585,-500.0,0.00021917,2]
[312039449,1705569045594,-500.0,0.00021917,2]
[312039450,1705569045604,-500.0,0.00021917,2]
[312039451,1705569045613,-500.0,0.00021917,2]
[312039452,1705569045622,-500.0,0.00021917,2]
[312039453,1705569045631,-500.0,0.00021917,2]
[312039454,1705569045640,-500.0,0.00021917,2]
[312039455,1705569045649,-192.62174928,0.00021917,2]
[312039456,1705569045657,-500.0,0.00021917,2]
[312039457,1705569045666,-500.0,0.00021917,2]
[312039458,1705569045675,-500.0,0.00021917,2]
[312039459,1705569045684,-500.0,0.00021917,2]
[312039460,1705569045693,-500.0,0.00021917,2]
[312039461,1705569045701,-500.0,0.00021917,2]
[312039462,1705569045710,-500.0,0.00021917,2]
[312039463,1705569045719,-589.90096381,0.00021917,2]
[312039464,1705569045728,-500.0,0.00021917,2]
[312039465,1705569045737,-500.0,0.00021917,2]
[312039466,1705569045746,-500.0,0.00021917,2]
[312039467,1705569045755,-500.0,0.00021917,2]
[312039468,1705569045764,-500.0,0.00021917,2]
[312039469,1705569045773,-500.0,0.00021917,2]
[312039470,1705569045782,-500.0,0.00021917,2]
[312039471,1705569045791,-500.0,0.00021917,2]
[312039472,1705569045800,-500.0,0.00021917,2]
[312039473,1705569045809,-346.90170283,0.00021917,2]
[312039474,1705569045818,-500.0,0.00021917,2]
[312039475,1705569045827,-500.0,0.00021917,2]
[312039476,1705569045836,-500.0,0.00021917,2]
[312039477,1705569045845,-549.4,0.00021917,2]
[312039478,1705569045854,-500.0,0.00021917,2]
[312039479,1705569045863,-500.0,0.00021917,2]
[312039480,1705569045872,-500.0,0.00021917,2]
[312039481,1705569045881,-576.93357129,0.00021917,2]
[312039482,1705569045890,-91.85828092,0.00021917,2]
[312039483,1705569045920,-408.14171908,0.00021917,2]
[312039484,1705569045928,-501.21202324,0.00021917,2]
[312039485,1705569045937,-500.0,0.00021917,2]
[312039486,1705569045946,-500.0,0.00021917,2]
[312039487,1705569045955,-510.69432129,0.00021917,2]
[312039488,1705569045965,-500.0,0.00021917,2]
[312039489,1705569045973,-500.0,0.00021917,2]
[312039490,1705569045982,-500.0,0.00021917,2]
[312039491,1705569045991,-500.0,0.00021917,2]
[312039492,1705569046000,-523.47091786,0.00021917,2]
[312039493,1705569046009,-500.0,0.00021917,2]
[312039494,1705569046018,-500.0,0.00021917,2]
[312039495,1705569046027,-500.0,0.00021917,2]
[312039496,1705569046036,-500.0,0.00021917,2]
[312039497,1705569046048,-500.0,0.00021917,2]
[312039498,1705569046057,-500.0,0.00021917,2]
[312039499,1705569046066,-500.0,0.00021917,2]
[312039500,1705569046075,-500.0,0.00021917,2]
[312039501,1705569046085,-642.05,0.00021917,2]
[312039502,1705569046094,-500.0,0.00021917,2]
[312039503,1705569046103,-500.0,0.00021917,2]
[312039504,1705569046112,-500.0,0.00021917,2]
[312039505,1705569046122,-307.08993126,0.00021917,2]
[312039506,1705569046131,-500.0,0.00021917,2]
[312039507,1705569046141,-500.0,0.00021917,2]
[312039509,1705569046151,-511.76963303,0.00021917,2]
[312039511,1705569046160,-500.0,0.00021917,2]
[312039512,1705569046169,-830.69,0.00021917,2]
[312039513,1705569046179,-500.0,0.00021917,2]
[312039514,1705569046188,-500.0,0.00021917,2]
[312039515,1705569046197,-500.0,0.00021917,2]
[312039516,1705569046206,-500.0,0.00021917,2]
[312039517,1705569046215,-212.69587564,0.00021917,2]
[312039518,1705569046224,-500.0,0.00021917,2]
[312039519,1705569046233,-503.39719602,0.00021917,2]
[312039520,1705569046243,-500.0,0.00021917,2]
[312039521,1705569046252,-225.87498134,0.00021917,2]
[312039522,1705569046264,-274.12501866,0.00021917,2]
[312039523,1705569046274,-500.0,0.00021917,2]
[312039524,1705569046283,-227.11562114,0.00021917,2]
[312039525,1705569046292,-507.24406193,0.00021917,2]
[312039526,1705569046302,-500.0,0.00021917,2]
[312039527,1705569046311,-329.55,0.00021917,2]
[312039528,1705569046321,-500.0,0.00021917,2]
[312039529,1705569046331,-553.14783053,0.00021917,2]
[312039530,1705569046341,-500.0,0.00021917,2]
[312039531,1705569046349,-500.0,0.00021917,2]
[312039532,1705569046358,-500.0,0.00021917,2]
[312039533,1705569046367,-695.55,0.00021917,2]
[312039534,1705569046376,-500.0,0.00021917,2]
[312039535,1705569046385,-500.0,0.00021917,2]
[312039536,1705569046395,-500.0,0.00021917,2]
[312039537,1705569046404,-500.0,0.00021917,2]
[312039538,1705569046413,-500.0,0.00021917,2]
[312039539,1705569046422,-73.28462328,0.00021917,2]
[312039540,1705569046435,-426.71537672,0.00021917,2]
[312039541,1705569046444,-501.15768466,0.00021917,2]
[312039542,1705569046453,-500.0,0.00021917,2]
[312039543,1705569046462,-507.33438992,0.00021917,2]
[312039544,1705569046471,-500.0,0.00021917,2]
[312039545,1705569046480,-500.0,0.00021917,2]
[312039546,1705569046490,-529.81,0.00021917,2]
[312039547,1705569046499,-369.70403864,0.00021917,2]
[312039548,1705569046510,-130.29596136,0.00021917,2]
[312039549,1705569046519,-500.0,0.00021917,2]
[312039550,1705569046527,-500.0,0.00021917,2]
[312039551,1705569046536,-500.0,0.00021917,2]
[312039552,1705569046546,-500.0,0.00021917,2]
[312039553,1705569046555,-500.0,0.00021917,2]
[312039554,1705569046564,-500.0,0.00021917,2]
[312039555,1705569046573,-500.0,0.00021917,2]
[312039556,1705569046583,-500.0,0.00021917,2]
[312039557,1705569046592,-173.47023456,0.00021917,2]
[312039558,1705569046600,-197.28404948,0.00021917,2]
[312039559,1705569046616,-302.71595052,0.00021917,2]
[312039560,1705569046625,-146.16666053,0.00021917,2]
[312039561,1705569047109,-353.83333947,0.00021917,2]
[312039562,1705569047118,-12.06823803,0.00021917,2]
[312039563,1705569047131,-494.30839245,0.00021917,2]
[312039564,1705569047140,-241.15837796,0.00021917,2]
[312039565,1705569047149,-500.0,0.00021917,2]
[312039566,1705569047158,-19.53322958,0.00021917,2]
[312039567,1705569047170,-482.54350418,0.00021917,2]
[312039568,1705569047179,-500.0,0.00021917,2]
[312039569,1705569047188,-500.0,0.00021917,2]
[312039570,1705569047198,-500.0,0.00021917,2]
[312039571,1705569047207,-500.0,0.00021917,2]
[312039572,1705569047217,-503.02162045,0.00021917,2]
[312039573,1705569047227,-118.33487537,0.00021917,2]
[312039574,1705569047239,-381.66512463,0.00021917,2]
[312039575,1705569047249,-500.0,0.00021917,2]
[312039576,1705569047258,-500.0,0.00021917,2]
[312039577,1705569047267,-500.0,0.00021917,2]
[312039578,1705569047276,-500.0,0.00021917,2]
[312039579,1705569047285,-500.0,0.00021917,2]
[312039580,1705569047295,-500.0,0.00021917,2]
[312039581,1705569047304,-535.18815851,0.00021917,2]
[312039582,1705569047313,-500.0,0.00021917,2]
[312039583,1705569047323,-500.0,0.00021917,2]
[312039584,1705569047332,-502.59845815,0.00021917,2]
[312039585,1705569047341,-500.0,0.00021917,2]
[312039586,1705569047350,-506.31759541,0.00021917,2]
[312039587,1705569047360,-545.69,0.00021917,2]
[312039588,1705569047369,-500.0,0.00021917,2]
[312039589,1705569047379,-501.39894652,0.00021917,2]
[312039590,1705569047389,-500.0,0.00021917,2]
[312039591,1705569047398,-48.42610778,0.00021917,2]
[312039592,1705569047415,-451.57389222,0.00021917,2]
[312039593,1705569047424,-262.48745233,0.00021917,2]
[312039594,1705569047434,-500.0,0.00021917,2]
[312039595,1705569047444,-500.0,0.00021917,2]
[312039596,1705569047453,-500.0,0.00021917,2]
[312039597,1705569047463,-340.91180465,0.00021917,2]
[312039598,1705569047494,-198.89849999,0.00021917,2]
[312039599,1705569047504,-321.61148582,0.00021917,2]
[312039600,1705569047514,-229.75427218,0.00021917,2]
[312039601,1705569047523,-220.35029306,0.00021917,2]
[312039602,1705569047533,-500.0,0.00021917,2]
[312039603,1705569047542,-500.0,0.00021917,2]
[312039604,1705569047552,-500.0,0.00021917,2]
[312039605,1705569047562,-500.0,0.00021917,2]
[312039606,1705569047571,-509.04953353,0.00021917,2]
[312039607,1705569047580,-500.0,0.00021917,2]
[312039608,1705569047590,-354.04054164,0.00021917,2]
[312039610,1705569147937,559.9916769,0.00019504,2]
[312039611,1705569159118,211.58072365,0.00019724,2]
[312039612,1705569209250,1000.0,0.00019527,2]
[312039613,1705569221085,151.0,0.0002,2]
[312039614,1705569231259,1000.0,0.00019527,2]
[312039615,1705569249254,1000.0,0.00019527,2]
[312039616,1705569271268,1000.0,0.00019332,2]
[312039617,1705569293264,1000.0,0.00019332,2]
[312039618,1705569294476,317.68,0.00019089,2]
[312039619,1705569313265,1000.0,0.00019332,2]
[312039620,1705569329367,1000.0,0.00018898,2]
[312039621,1705569337751,513.89047073,0.00021917,10]
[312039622,1705569349286,1000.0,0.00018898,2]
[312039623,1705569369285,1000.0,0.00018709,2]
[312039624,1705569389269,448.50818,0.00035214,30]
[312039625,1705569389299,1000.0,0.00018709,2]
[312039626,1705569403280,1000.0,0.00018709,2]
[312039627,1705569421354,1000.0,0.00018709,2]
[312039628,1705569439297,1000.0,0.00018522,2]
[312039629,1705569457305,1000.0,0.00018522,2]
[312039630,1705569475295,1000.0,0.00018337,2]
[312039631,1705569488110,305.638467,0.00035214,30]
[312039632,1705569497294,1000.0,0.00018337,2]
[312039633,1705569521289,1000.0,0.00018337,2]
[312039634,1705569539298,1000.0,0.00018154,2]
[312039635,1705569559328,1000.0,0.00018154,2]
[312039636,1705569573760,207.0,0.00020129,2]
[312039637,1705569577304,1000.0,0.00018154,2]
[312039638,1705569595291,1000.0,0.00018154,2]
[312039639,1705569605217,713.54469715,0.00035217,30]
[312039640,1705569613300,250.51734826,0.00019928,2]
[312039641,1705569675032,1204.65625666,0.00035217,120]
[312039642,1705569796939,759.37464056,0.00035217,30]
[312039643,1705569812884,645.49022319,0.00035217,30]
[312039644,1705569814048,206.0,0.00020129,2]
[312039645,1705569827513,312.91,0.00018791,2]
[312039646,1705569885095,1970.502977,0.00035217,30]
[312039692,1705570231522,-470.75176696,0.00020662,2]
[312039693,1705570231535,-1711.99249184,0.00020662,2]
[312039694,1705570231583,-9120.85935216,0.00020662,2]
[312039695,1705570231689,-1326.90572338,0.00020662,2]
[312039696,1705570231738,-254.97541329,0.00020662,2]
[312039697,1705570231750,-384.3878097,0.00020662,2]
[312039698,1705570231762,-3690.69175064,0.00020662,2]
[312039701,1705570238221,-1328.04865887,0.00020662,2]
[312039702,1705570238233,-5611.38703316,0.00020662,2]
[312039703,1705570238242,-205.04,0.00020695,2]
[312039704,1705570238251,-382.14,0.00020697,2]
[312039705,1705570238261,-157.06,0.00020714,2]
[312039706,1705570238270,-150.0,0.0002072,2]
[312039707,1705570238279,-815.68,0.00020748,2]
[312039708,1705570238288,-563.72651413,0.00020819,2]
[312039709,1705570238296,-164.79555707,0.00020819,2]
[312039710,1705570238306,-152.41,0.00020838,2]
[312039711,1705570238315,-172.52,0.00020838,2]
[312039712,1705570238324,-275.86,0.00020838,2]
[312039713,1705570238333,-2000.0,0.00020838,2]
[312039714,1705570238342,-362.48,0.00020838,2]
[312039715,1705570238351,-184.32,0.00020955,2]
[312039716,1705570238360,-155.68,0.00020959,2]
[312039717,1705570238369,-157.28,0.00021038,2]
[312039718,1705570238378,-406.55,0.00021055,2]
[312039719,1705570238387,-312.91,0.00021055,2]
[312039720,1705570238396,-152.41,0.00021057,2]
[312039721,1705570238406,-735.44,0.00021201,2]
[312039722,1705570238415,-723.22,0.00021201,2]
[312039723,1705570238425,-152.41,0.00021277,2]
[312039724,1705570238436,-710.5,0.00021341,2]
[312039725,1705570238445,-152.41,0.00021496,2]
[312039726,1705570238454,-165.18892341,0.00021644,3]
[312039727,1705570238464,-3922.85,0.00021644,2]
[312039728,1705570238473,-382.14,0.00021676,2]
[312039729,1705570238483,-152.41,0.00021716,2]
[312039730,1705570238493,-995.033946,0.00021809,2]
[312039731,1705570238501,-1028.74,0.00021817,2]
[312039732,1705570238511,-750.0,0.00021817,2]
[312039733,1705570238520,-591.04601115,0.00021817,2]
[312039734,1705570238529,-286.06647714,0.00021915,2]
[312039735,1705570238539,-159.84444048,0.00021915,2]
[312039736,1705570238548,-150.0,0.00021916,2]
[312039737,1705570238557,-500.0,0.00021917,2]
[312039738,1705570238566,-502.14007724,0.00021917,2]
[312039739,1705570238575,-1891.75005992,0.00021917,2]
[312039740,1705570238585,-200.0,0.00021917,2]
[312039741,1705570238594,-500.0,0.00021917,2]
[312039743,1705570238603,-500.0,0.00021917,2]
[312039745,1705570238613,-467.34391527,0.00021917,2]
[312039747,1705570238622,-500.0,0.00021917,2]
[312039749,1705570238632,-500.0,0.00021917,2]
[312039751,1705570238640,-500.0,0.00021917,2]
[312039753,1705570238649,-500.0,0.00021917,2]
[312039755,1705570238659,-500.0,0.00021917,2]
[312039757,1705570238668,-500.0,0.00021917,2]
[312039759,1705570238677,-500.0,0.00021917,2]
[312039761,1705570238686,-500.0,0.00021917,2]
[312039763,1705570238695,-500.0,0.00021917,2]
[312039765,1705570238704,-500.0,0.00021917,2]
[312039768,1705570238713,-500.0,0.00021917,2]
[312039770,1705570238722,-500.0,0.00021917,2]
[312039772,1705570238731,-510.17770182,0.00021917,2]
[312039774,1705570238739,-500.0,0.00021917,2]
[312039776,1705570238748,-502.25119488,0.00021917,2]
[312039778,1705570238757,-500.0,0.00021917,2]
[312039780,1705570238766,-500.0,0.00021917,2]
[312039782,1705570238775,-500.0,0.00021917,2]
[312039784,1705570238784,-500.0,0.00021917,2]
[312039786,1705570238793,-500.0,0.00021917,2]
[312039788,1705570238802,-500.0,0.00021917,2]
[312039790,1705570238811,-500.0,0.00021917,2]
[312039792,1705570238820,-500.0,0.00021917,2]
[312039794,1705570238829,-610.42,0.00021917,2]
[312039796,1705570238838,-500.0,0.00021917,2]
[312039798,1705570238847,-500.0,0.00021917,2]
[312039800,1705570238856,-500.0,0.00021917,2]
[312039802,1705570238865,-500.0,0.00021917,2]
[312039804,1705570238876,-500.0,0.00021917,2]
[312039806,1705570238885,-509.22548085,0.00021917,2]
[312039808,1705570238895,-501.63197879,0.00021917,2]
[312039811,1705570238905,-505.38181473,0.00021917,2]
[312039813,1705570238914,-500.0,0.00021917,2]
[312039815,1705570238923,-500.0,0.00021917,2]
[312039817,1705570238932,-500.0,0.00021917,2]
[312039819,1705570238941,-500.0,0.00021917,2]
[312039821,1705570238951,-502.04,0.00021917,2]
[312039823,1705570238961,-508.26193086,0.00021917,2]
[312039825,1705570238970,-500.0,0.00021917,2]
[312039827,1705570238979,-522.2209201,0.00021917,2]
[312039829,1705570238988,-500.0,0.00021917,2]
[312039831,1705570238997,-500.0,0.00021917,2]
[312039832,1705570239006,-500.0,0.00021917,2]
[312039833,1705570239015,-500.0,0.00021917,2]
[312039834,1705570239025,-516.71988812,0.00021917,2]
[312039835,1705570239034,-500.0,0.00021917,2]
[312039836,1705570239043,-500.0,0.00021917,2]
[312039837,1705570239053,-500.78950564,0.00021917,2]
[312039838,1705570239062,-500.0,0.00021917,2]
[312039839,1705570239071,-505.44164617,0.00021917,2]
[312039840,1705570239080,-500.0,0.00021917,2]
[312039842,1705570239089,-500.0,0.00021917,2]
[312039844,1705570239099,-500.0,0.00021917,2]
[312039846,1705570239108,-500.0,0.00021917,2]
[312039848,1705570239119,-500.0,0.00021917,2]
[312039850,1705570239129,-500.0,0.00021917,2]
[312039852,1705570239138,-500.0,0.00021917,2]
[312039854,1705570239147,-500.0,0.00021917,2]
[312039856,1705570239156,-500.0,0.00021917,2]
[312039858,1705570239166,-500.0,0.00021917,2]
[312039860,1705570239175,-505.11504352,0.00021917,2]
[312039862,1705570239184,-500.0,0.00021917,2]
[312039864,1705570239194,-500.0,0.00021917,2]
[312039867,1705570239204,-502.51849136,0.00021917,2]
[312039869,1705570239214,-500.0,0.00021917,2]
[312039871,1705570239223,-500.0,0.00021917,2]
[312039873,1705570239232,-500.0,0.00021917,2]
[312039875,1705570239242,-500.0,0.00021917,2]
[312039878,1705570239251,-500.0,0.00021917,2]
[312039881,1705570239261,-500.0,0.00021917,2]
[312039883,1705570239270,-500.0,0.00021917,2]
[312039885,1705570239280,-500.0,0.00021917,2]
[312039887,1705570239289,-500.0,0.00021917,2]
[312039889,1705570239298,-500.0,0.00021917,2]
[312039891,1705570239308,-500.0,0.00021917,2]
[312039893,1705570239318,-500.0,0.00021917,2]
[312039895,1705570239327,-500.0,0.00021917,2]
[312039897,1705570239336,-500.0,0.00021917,2]
[312039899,1705570239345,-500.0,0.00021917,2]
[312039901,1705570239355,-500.0,0.00021917,2]
[312039903,1705570239364,-500.0,0.00021917,2]
[312039905,1705570239373,-500.0,0.00021917,2]
[312039908,1705570239383,-500.0,0.00021917,2]
[312039910,1705570239393,-500.0,0.00021917,2]
[312039912,1705570239402,-500.0,0.00021917,2]
[312039914,1705570239411,-500.0,0.00021917,2]
[312039916,1705570239421,-500.0,0.00021917,2]
[312039918,1705570239432,-500.0,0.00021917,2]
[312039920,1705570239443,-521.15868409,0.00021917,2]
[312039922,1705570239452,-500.0,0.00021917,2]
[312039924,1705570239462,-500.0,0.00021917,2]
[312039926,1705570239471,-500.0,0.00021917,2]
[312039928,1705570239481,-500.0,0.00021917,2]
[312039930,1705570239491,-500.0,0.00021917,2]
[312039932,1705570239500,-500.0,0.00021917,2]
[312039934,1705570239510,-500.0,0.00021917,2]
[312039936,1705570239520,-500.0,0.00021917,2]
[312039938,1705570239530,-500.0,0.00021917,2]
[312039940,1705570239539,-509.85621291,0.00021917,2]
[312039942,1705570239549,-500.0,0.00021917,2]
[312039944,1705570239559,-500.0,0.00021917,2]
[312039946,1705570239569,-542.30687926,0.00021917,2]
[312039948,1705570239579,-500.0,0.00021917,2]
[312039950,1705570239589,-526.21256991,0.00021917,2]
[312039952,1705570239598,-520.01836206,0.00021917,2]
[312039954,1705570239608,-524.38471533,0.00021917,2]
[312039956,1705570239617,-500.0,0.00021917,2]
[312039958,1705570239628,-500.0,0.00021917,2]
[312039961,1705570239638,-500.0,0.00021917,2]
[312039963,1705570239647,-500.0,0.00021917,2]
[312039965,1705570239656,-173.90109786,0.00021917,2]
[312039967,1705570239666,-500.0,0.00021917,2]
[312039969,1705570239675,-500.0,0.00021917,2]
[312039971,1705570239684,-500.0,0.00021917,2]
[312039973,1705570239694,-176.46336912,0.00021917,2]
[312039975,1705570239703,-500.0,0.00021917,2]
[312039977,1705570239712,-500.0,0.00021917,2]
[312039979,1705570239721,-178.03758878,0.00021917,2]
[312039981,1705570239730,-500.0,0.00021917,2]
[312039983,1705570239740,-500.0,0.00021917,2]
[312039985,1705570239749,-500.0,0.00021917,2]
[312039987,1705570239759,-500.0,0.00021917,2]
[312039989,1705570239769,-500.0,0.00021917,2]
[312039991,1705570239778,-500.0,0.00021917,2]
[312039993,1705570239788,-500.0,0.00021917,2]
[312039995,1705570239797,-518.69712721,0.00021917,2]
[312039997,1705570239806,-500.0,0.00021917,2]
[312039999,1705570239815,-500.0,0.00021917,2]
[312040001,1705570239825,-500.0,0.00021917,2]
[312040003,1705570239834,-194.25335596,0.00021917,2]
[312040005,1705570239844,-500.0,0.00021917,2]
[312040007,1705570239853,-500.0,0.00021917,2]
[312040010,1705570239863,-511.21494896,0.00021917,2]
[312040012,1705570239873,-500.0,0.00021917,2]
[312040015,1705570239883,-500.0,0.00021917,2]
[312040018,1705570239893,-500.0,0.00021917,2]
[312040021,1705570239902,-500.0,0.00021917,2]
[312040024,1705570239912,-500.0,0.00021917,2]
[312040027,1705570239921,-500.0,0.00021917,2]
[312040030,1705570239930,-638.55,0.00021917,2]
[312040033,1705570239940,-500.0,0.00021917,2]
[312040035,1705570239949,-515.1393545,0.00021917,2]
[312040038,1705570239958,-500.0,0.00021917,2]
[312040041,1705570239967,-500.0,0.00021917,2]
[312040044,1705570239977,-530.2018886,0.00021917,2]
[312040047,1705570239986,-500.0,0.00021917,2]
[312040050,1705570239996,-500.0,0.00021917,2]
[312040052,1705570240005,-500.0,0.00021917,2]
[312040054,1705570240014,-500.0,0.00021917,2]
[312040056,1705570240024,-500.0,0.00021917,2]
[312040058,1705570240034,-500.0,0.00021917,2]
[312040060,1705570240043,-501.86508385,0.00021917,2]
[312040062,1705570240053,-520.04824444,0.00021917,2]
[312040064,1705570240062,-500.0,0.00021917,2]
[312040066,1705570240071,-500.0,0.00021917,2]
[312040068,1705570240081,-500.0,0.00021917,2]
[312040070,1705570240090,-500.0,0.00021917,2]
[312040072,1705570240100,-500.0,0.00021917,2]
[312040075,1705570240109,-568.32247372,0.00021917,2]
[312040077,1705570240119,-443.7598126,0.00021917,2]
[312040079,1705570240129,-500.0,0.00021917,2]
[312040081,1705570240138,-500.0,0.00021917,2]
[312040083,1705570240147,-500.0,0.00021917,2]
[312040085,1705570240156,-323.49444993,0.00021917,2]
[312040087,1705570240165,-502.14678238,0.00021917,2]
[312040089,1705570240175,-500.0,0.00021917,2]
[312040091,1705570240184,-500.0,0.00021917,2]
[312040093,1705570240193,-500.0,0.00021917,2]
[312040095,1705570240203,-500.0,0.00021917,2]
[312040097,1705570240212,-500.0,0.00021917,2]
[312040099,1705570240221,-527.53871258,0.00021917,2]
[312040101,1705570240231,-500.0,0.00021917,2]
[312040103,1705570240240,-500.0,0.00021917,2]
[312040105,1705570240250,-500.0,0.00021917,2]
[312040107,1705570240260,-500.0,0.00021917,2]
[312040109,1705570240269,-500.0,0.00021917,2]
[312040112,1705570240279,-257.05947115,0.00021917,2]
[312040114,1705570240289,-500.0,0.00021917,2]
[312040116,1705570240298,-500.0,0.00021917,2]
[312040118,1705570240308,-500.0,0.00021917,2]
[312040120,1705570240317,-526.28357899,0.00021917,2]
[312040122,1705570240327,-575.92185193,0.00021917,2]
[312040124,1705570240336,-500.0,0.00021917,2]
[312040126,1705570240346,-500.0,0.00021917,2]
[312040128,1705570240356,-500.0,0.00021917,2]
[312040130,1705570240365,-500.0,0.00021917,2]
[312040132,1705570240375,-500.0,0.00021917,2]
[312040134,1705570240386,-500.0,0.00021917,2]